[Event "*** Titled Tuesday Blitz"]
[Site "Chess.com"]
[Date "2020.05.19"]
[Round "2"]
[White "harvsp123"]
[Black "IMTominho"]
[Result "0-1"]
[WhiteElo "2530"]
[BlackElo "2835"]
[TimeControl "180+1"]
[EndTime "12:17:37 PDT"]
[Termination "IMTominho won by resignation"]

1. e4 {[%clk 0:03:00.9]} 1... e5 {[%clk 0:02:56.2]} 2. Nf3 {[%clk 0:02:59.9]}
2... Nf6 {[%clk 0:02:56.5]} 3. d4 {[%clk 0:02:58.7]} 3... Nxe4 {[%clk
0:02:55.2]} 4. dxe5 {[%clk 0:02:53.2]} 4... d5 {[%clk 0:02:53.7]} 5. Nbd2 {[%clk
0:02:35]} 5... Nxd2 {[%clk 0:02:48.9]} 6. Bxd2 {[%clk 0:02:33.8]} 6... c5 {[%clk
0:02:45.9]} 7. Bd3 {[%clk 0:02:29.7]} 7... Be7 {[%clk 0:02:43.6]} 8. c3 {[%clk
0:02:22.8]} 8... Nc6 {[%clk 0:02:41.3]} 9. O-O {[%clk 0:02:17.9]} 9... Be6
{[%clk 0:02:39.8]} 10. b4 {[%clk 0:02:12.1]} 10... b6 {[%clk 0:02:33.9]} 11. Bb5
{[%clk 0:01:27.5]} 11... Rc8 {[%clk 0:02:31.4]} 12. bxc5 {[%clk 0:00:59.1]}
12... bxc5 {[%clk 0:02:30.9]} 13. Qa4 {[%clk 0:00:56.7]} 13... Qc7 {[%clk
0:02:30.1]} 14. c4 {[%clk 0:00:50.4]} 14... d4 {[%clk 0:02:22.8]} 15. Ba5 {[%clk
0:00:49.9]} 15... Qd7 {[%clk 0:02:20.7]} 16. Ba6 {[%clk 0:00:40.7]} 16... Rb8
{[%clk 0:02:15.7]} 17. Bb5 {[%clk 0:00:40.8]} 17... Rc8 {[%clk 0:02:15.5]} 18.
Ba6 {[%clk 0:00:41]} 18... O-O {[%clk 0:02:14.6]} 19. Bxc8 {[%clk 0:00:40.4]}
19... Rxc8 {[%clk 0:02:13.5]} 20. Bd2 {[%clk 0:00:32.1]} 20... h6 {[%clk
0:02:09.9]} 21. Qa3 {[%clk 0:00:28.8]} 21... Bf5 {[%clk 0:02:05.3]} 22. Rfe1
{[%clk 0:00:28.4]} 22... Qe6 {[%clk 0:02:01.3]} 23. Qa4 {[%clk 0:00:27.1]} 23...
Bg4 {[%clk 0:01:57]} 24. Qb3 {[%clk 0:00:21.4]} 24... Rb8 {[%clk 0:01:55.3]} 25.
Qd3 {[%clk 0:00:19.4]} 25... Bf5 {[%clk 0:01:55.4]} 26. Qa3 {[%clk 0:00:18.8]}
26... Qxc4 {[%clk 0:01:50.3]} 27. Bf4 {[%clk 0:00:18.4]} 27... Qe6 {[%clk
0:01:43.5]} 28. Qa6 {[%clk 0:00:17.4]} 28... c4 {[%clk 0:01:40.8]} 29. Rad1
{[%clk 0:00:16.1]} 29... Bc5 {[%clk 0:01:38.8]} 30. h3 {[%clk 0:00:10.6]} 30...
c3 {[%clk 0:01:38.7]} 31. g4 {[%clk 0:00:09.3]} 31... Bg6 {[%clk 0:01:35.9]} 32.
Bg3 {[%clk 0:00:09.2]} 32... Rb2 {[%clk 0:01:31.4]} 33. Nh4 {[%clk 0:00:08.6]}
33... Bc2 {[%clk 0:01:07.1]} 34. Rc1 {[%clk 0:00:08.3]} 34... Nb4 {[%clk
0:01:07.2]} 35. Qxe6 {[%clk 0:00:06]} 35... fxe6 {[%clk 0:01:08.1]} 36. Ng6
{[%clk 0:00:05.4]} 36... Bxg6 {[%clk 0:01:07.3]} 0-1

[Event "*** Titled Tuesday Blitz"]
[Site "Chess.com"]
[Date "2020.05.19"]
[Round "2"]
[White "WildTricks"]
[Black "TigrVShlyape"]
[Result "1/2-1/2"]
[WhiteElo "2529"]
[BlackElo "2812"]
[TimeControl "180+1"]
[EndTime "12:17:37 PDT"]
[Termination "Game drawn by repetition"]

1. Nf3 {[%clk 0:03:00.9]} 1... d5 {[%clk 0:02:58.1]} 2. g3 {[%clk 0:03:01.1]}
2... Nf6 {[%clk 0:02:58]} 3. Bg2 {[%clk 0:03:01.2]} 3... c6 {[%clk 0:02:58.1]}
4. O-O {[%clk 0:03:01.6]} 4... Bf5 {[%clk 0:02:58.3]} 5. d3 {[%clk 0:03:00.4]}
5... h6 {[%clk 0:02:57.6]} 6. c4 {[%clk 0:02:59.2]} 6... e6 {[%clk 0:02:57.6]}
7. cxd5 {[%clk 0:02:59.6]} 7... exd5 {[%clk 0:02:54.8]} 8. Nc3 {[%clk
0:02:58.3]} 8... Be7 {[%clk 0:02:51.1]} 9. Nd4 {[%clk 0:02:58.2]} 9... Bh7
{[%clk 0:02:48.7]} 10. e4 {[%clk 0:02:58.7]} 10... O-O {[%clk 0:02:39.7]} 11.
Re1 {[%clk 0:02:57.4]} 11... dxe4 {[%clk 0:02:29.5]} 12. dxe4 {[%clk 0:02:58.3]}
12... Bc5 {[%clk 0:02:04.8]} 13. Be3 {[%clk 0:02:56.5]} 13... Qe7 {[%clk
0:01:37.2]} 14. Qb3 {[%clk 0:02:27.1]} 14... Ng4 {[%clk 0:01:24.4]} 15. Nc2
{[%clk 0:01:50.2]} 15... Nxe3 {[%clk 0:01:23.2]} 16. Nxe3 {[%clk 0:01:51.1]}
16... Na6 {[%clk 0:01:14.1]} 17. Rad1 {[%clk 0:01:46.8]} 17... Rad8 {[%clk
0:01:09.4]} 18. Bh3 {[%clk 0:01:35.7]} 18... Bb6 {[%clk 0:01:06.6]} 19. Nf5
{[%clk 0:01:34.3]} 19... Qe5 {[%clk 0:01:00.8]} 20. Na4 {[%clk 0:01:32.2]} 20...
Nc5 {[%clk 0:00:59.3]} 21. Nxc5 {[%clk 0:01:26.2]} 21... Qxc5 {[%clk 0:00:59.3]}
22. Qf3 {[%clk 0:01:23.9]} 22... Qe5 {[%clk 0:00:58.9]} 23. Kg2 {[%clk
0:01:22.5]} 23... Rfe8 {[%clk 0:00:56.4]} 24. Qg4 {[%clk 0:01:00.5]} 24... Bxf5
{[%clk 0:00:53.1]} 25. Qxf5 {[%clk 0:01:01.4]} 25... Qxb2 {[%clk 0:00:48.7]} 26.
Rxd8 {[%clk 0:00:52.1]} 26... Rxd8 {[%clk 0:00:47.8]} 27. e5 {[%clk 0:00:52.6]}
27... Rd2 {[%clk 0:00:36.1]} 28. Rf1 {[%clk 0:00:52.5]} 28... Re2 {[%clk
0:00:29.6]} 29. Qc8+ {[%clk 0:00:51.6]} 29... Kh7 {[%clk 0:00:29.4]} 30. Qf5+
{[%clk 0:00:52.1]} 30... Kg8 {[%clk 0:00:28.6]} 31. Qc8+ {[%clk 0:00:51.7]}
31... Kh7 {[%clk 0:00:28.8]} 32. Qf5+ {[%clk 0:00:34.1]} 32... Kg8 {[%clk
0:00:28.1]} 1/2-1/2

[Event "*** Titled Tuesday Blitz"]
[Site "Chess.com"]
[Date "2020.05.19"]
[Round "2"]
[White "harkerchess"]
[Black "Doukis"]
[Result "1-0"]
[WhiteElo "2062"]
[BlackElo "2365"]
[TimeControl "180+1"]
[EndTime "12:17:37 PDT"]
[Termination "harkerchess won on time"]

1. d4 {[%clk 0:03:00.9]} 1... d5 {[%clk 0:02:59.4]} 2. c4 {[%clk 0:03:00.6]}
2... c6 {[%clk 0:02:59.7]} 3. cxd5 {[%clk 0:03:00.6]} 3... cxd5 {[%clk
0:03:00.6]} 4. Nc3 {[%clk 0:03:01.2]} 4... Nc6 {[%clk 0:03:00.1]} 5. Nf3 {[%clk
0:03:01.7]} 5... Bf5 {[%clk 0:02:59.7]} 6. Qb3 {[%clk 0:02:59.6]} 6... e6 {[%clk
0:02:56.2]} 7. Qxb7 {[%clk 0:02:50.4]} 7... Qc8 {[%clk 0:02:29.5]} 8. Qxc8+
{[%clk 0:02:44.7]} 8... Rxc8 {[%clk 0:02:30.4]} 9. a3 {[%clk 0:02:41.2]} 9...
Na5 {[%clk 0:02:25.6]} 10. Bf4 {[%clk 0:02:29.5]} 10... Nb3 {[%clk 0:02:22.6]}
11. Ra2 {[%clk 0:02:18.1]} 11... Nf6 {[%clk 0:02:19.8]} 12. e3 {[%clk
0:02:16.9]} 12... Ne4 {[%clk 0:02:14.6]} 13. Bb5+ {[%clk 0:02:15.4]} 13... Kd8
{[%clk 0:02:14.6]} 14. Ne5 {[%clk 0:02:08.2]} 14... Nxc3 {[%clk 0:02:05.4]} 15.
bxc3 {[%clk 0:02:00.6]} 15... Rxc3 {[%clk 0:02:05.1]} 16. Nxf7+ {[%clk
0:01:57.3]} 16... Ke7 {[%clk 0:02:04.6]} 17. Nxh8 {[%clk 0:01:53.6]} 17... Rc1+
{[%clk 0:02:04]} 18. Ke2 {[%clk 0:01:54]} 18... Rxh1 {[%clk 0:02:03.6]} 19. Rb2
{[%clk 0:01:49.3]} 19... Nc1+ {[%clk 0:01:56.4]} 20. Kd2 {[%clk 0:01:46.6]}
20... g6 {[%clk 0:00:56]} 21. Bg5+ {[%clk 0:01:28.3]} 21... Kd6 {[%clk
0:00:54.9]} 22. Nf7+ {[%clk 0:01:27.5]} 22... Kc7 {[%clk 0:00:55.3]} 23. Ba6
{[%clk 0:01:24.9]} 23... Kc6 {[%clk 0:00:26.5]} 24. Ne5+ {[%clk 0:01:19]} 24...
Kd6 {[%clk 0:00:23.4]} 25. Rb7 {[%clk 0:01:19.9]} 25... Nb3+ {[%clk 0:00:12]}
26. Ke2 {[%clk 0:01:04.6]} 26... Nc1+ {[%clk 0:00:08.9]} 27. Kf3 {[%clk
0:00:59.8]} 27... Be4+ {[%clk 0:00:06.7]} 28. Kg4 {[%clk 0:00:58.7]} 28... h5+
{[%clk 0:00:04.8]} 29. Kg3 {[%clk 0:00:53]} 29... Ne2+ {[%clk 0:00:04.2]} 30.
Bxe2 {[%clk 0:00:52]} 1-0

[Event "*** Titled Tuesday Blitz"]
[Site "Chess.com"]
[Date "2020.05.19"]
[Round "2"]
[White "DishonorOnYourCow"]
[Black "Volodar_Murzin"]
[Result "0-1"]
[WhiteElo "2336"]
[BlackElo "2742"]
[TimeControl "180+1"]
[EndTime "12:17:39 PDT"]
[Termination "Volodar_Murzin won on time"]

1. d4 {[%clk 0:03:00.9]} 1... Nf6 {[%clk 0:02:59.9]} 2. c4 {[%clk 0:02:58.5]}
2... g6 {[%clk 0:03:00.3]} 3. Nc3 {[%clk 0:02:56.8]} 3... Bg7 {[%clk 0:03:00.9]}
4. e4 {[%clk 0:02:57.1]} 4... O-O {[%clk 0:03:01.7]} 5. f4 {[%clk 0:02:57.2]}
5... d6 {[%clk 0:03:02.2]} 6. Nf3 {[%clk 0:02:57.5]} 6... Nbd7 {[%clk
0:03:02.8]} 7. Bd3 {[%clk 0:02:56.8]} 7... e5 {[%clk 0:03:03.5]} 8. fxe5 {[%clk
0:02:56.7]} 8... dxe5 {[%clk 0:03:04.1]} 9. d5 {[%clk 0:02:57.4]} 9... Qe7
{[%clk 0:03:04.3]} 10. O-O {[%clk 0:02:56.3]} 10... a5 {[%clk 0:03:04.8]} 11.
Kh1 {[%clk 0:02:54.9]} 11... b6 {[%clk 0:03:04.8]} 12. Bg5 {[%clk 0:02:52.5]}
12... Nc5 {[%clk 0:03:05.1]} 13. Bc2 {[%clk 0:02:40.2]} 13... h6 {[%clk
0:03:03.7]} 14. Bh4 {[%clk 0:02:34.9]} 14... Bd7 {[%clk 0:03:03.4]} 15. Qd2
{[%clk 0:02:28.8]} 15... Qd6 {[%clk 0:03:03.5]} 16. Rae1 {[%clk 0:02:21.7]}
16... Rae8 {[%clk 0:03:00.7]} 17. b3 {[%clk 0:01:55.6]} 17... Nh7 {[%clk
0:02:51.1]} 18. a3 {[%clk 0:01:52.1]} 18... a4 {[%clk 0:02:35.4]} 19. b4 {[%clk
0:01:49.7]} 19... Nb3 {[%clk 0:02:35.4]} 20. Bxb3 {[%clk 0:01:41.9]} 20... axb3
{[%clk 0:02:36.3]} 21. Qb2 {[%clk 0:01:39.5]} 21... f5 {[%clk 0:02:35.7]} 22.
Qxb3 {[%clk 0:01:33.5]} 22... g5 {[%clk 0:02:34.1]} 23. Bf2 {[%clk 0:01:33]}
23... f4 {[%clk 0:02:31.7]} 24. c5 {[%clk 0:01:32.5]} 24... Qg6 {[%clk
0:02:30.3]} 25. c6 {[%clk 0:00:50.3]} 25... Bc8 {[%clk 0:02:26.8]} 26. Nb5
{[%clk 0:00:50.2]} 26... Rf7 {[%clk 0:02:15.8]} 27. d6 {[%clk 0:00:42.9]} 27...
cxd6 {[%clk 0:02:12.4]} 28. Rd1 {[%clk 0:00:38.9]} 28... Bf8 {[%clk 0:02:06.2]}
29. Bxb6 {[%clk 0:00:37]} 29... g4 {[%clk 0:02:04.3]} 30. Nh4 {[%clk 0:00:35.8]}
30... Qh5 {[%clk 0:02:03.7]} 31. Nf5 {[%clk 0:00:34.8]} 31... Bxf5 {[%clk
0:01:40.1]} 32. exf5 {[%clk 0:00:35.7]} 32... g3 {[%clk 0:01:39.7]} 33. h3
{[%clk 0:00:32.8]} 33... Ng5 {[%clk 0:01:39.3]} 34. Rd2 {[%clk 0:00:12.2]} 34...
f3 {[%clk 0:01:05]} 35. gxf3 {[%clk 0:00:05.7]} 35... Nxh3 {[%clk 0:01:00.1]}
0-1

[Event "*** Titled Tuesday Blitz"]
[Site "Chess.com"]
[Date "2020.05.19"]
[Round "2"]
[White "RovenVogel"]
[Black "Berant"]
[Result "1-0"]
[WhiteElo "2732"]
[BlackElo "2330"]
[TimeControl "180+1"]
[EndTime "12:17:40 PDT"]
[Termination "RovenVogel won by resignation"]

1. d4 {[%clk 0:03:00.9]} 1... Nf6 {[%clk 0:02:59.6]} 2. c4 {[%clk 0:03:00.6]}
2... e6 {[%clk 0:02:59.9]} 3. Nf3 {[%clk 0:03:00.1]} 3... d5 {[%clk 0:03:00.2]}
4. Nc3 {[%clk 0:02:59.4]} 4... c5 {[%clk 0:03:00.7]} 5. e3 {[%clk 0:02:57.5]}
5... Nbd7 {[%clk 0:02:50.8]} 6. cxd5 {[%clk 0:02:54.3]} 6... Nxd5 {[%clk
0:02:50.8]} 7. Nxd5 {[%clk 0:02:52.5]} 7... exd5 {[%clk 0:02:51.1]} 8. dxc5
{[%clk 0:02:47.6]} 8... Nxc5 {[%clk 0:02:51.2]} 9. Be2 {[%clk 0:02:36.8]} 9...
Be7 {[%clk 0:02:48.9]} 10. O-O {[%clk 0:02:35.3]} 10... O-O {[%clk 0:02:45.9]}
11. b3 {[%clk 0:02:33.9]} 11... Bf6 {[%clk 0:02:45.1]} 12. Nd4 {[%clk
0:02:33.5]} 12... Bd7 {[%clk 0:02:00.9]} 13. Bb2 {[%clk 0:02:32.1]} 13... Rc8
{[%clk 0:01:57.8]} 14. Rc1 {[%clk 0:02:28.3]} 14... Ne4 {[%clk 0:01:57.2]} 15.
Rc2 {[%clk 0:02:23.6]} 15... Rxc2 {[%clk 0:01:54.8]} 16. Qxc2 {[%clk 0:02:24.5]}
16... Qc8 {[%clk 0:01:51.9]} 17. Rc1 {[%clk 0:02:21.2]} 17... Qxc2 {[%clk
0:01:51.4]} 18. Rxc2 {[%clk 0:02:22.1]} 18... Rc8 {[%clk 0:01:51.2]} 19. Rxc8+
{[%clk 0:02:21.7]} 19... Bxc8 {[%clk 0:01:52.1]} 20. f3 {[%clk 0:01:58.6]} 20...
Nc5 {[%clk 0:01:48.4]} 21. Ba3 {[%clk 0:01:55.7]} 21... b6 {[%clk 0:01:17.6]}
22. Nb5 {[%clk 0:01:43.1]} 22... Bd7 {[%clk 0:00:58.3]} 23. Nxa7 {[%clk
0:01:38.7]} 23... d4 {[%clk 0:00:58.5]} 24. exd4 {[%clk 0:01:33.1]} 24... Bxd4+
{[%clk 0:00:58.2]} 25. Kf1 {[%clk 0:01:34]} 25... Bf5 {[%clk 0:00:36.3]} 26. Nc6
{[%clk 0:01:28.4]} 26... Bf6 {[%clk 0:00:33]} 27. Bc4 {[%clk 0:01:16.9]} 27...
Bb1 {[%clk 0:00:30.2]} 28. Bxc5 {[%clk 0:01:13.3]} 28... bxc5 {[%clk 0:00:28.6]}
29. a4 {[%clk 0:01:14.2]} 29... Bf5 {[%clk 0:00:19.4]} 30. a5 {[%clk 0:01:11.6]}
30... Bc8 {[%clk 0:00:18]} 31. a6 {[%clk 0:01:10.7]} 31... Kf8 {[%clk
0:00:17.5]} 32. Bb5 {[%clk 0:01:03.4]} 32... Ke8 {[%clk 0:00:09.4]} 33. a7
{[%clk 0:01:00.1]} 33... Bb7 {[%clk 0:00:06.9]} 34. Na5+ {[%clk 0:00:59.9]}
34... Kd8 {[%clk 0:00:07.4]} 35. Nxb7+ {[%clk 0:00:59.7]} 1-0

[Event "*** Titled Tuesday Blitz"]
[Site "Chess.com"]
[Date "2020.05.19"]
[Round "2"]
[White "CyberneticLion"]
[Black "VladimirBugayev"]
[Result "1-0"]
[WhiteElo "2499"]
[BlackElo "2279"]
[TimeControl "180+1"]
[EndTime "12:17:40 PDT"]
[Termination "CyberneticLion won by resignation"]

1. e4 {[%clk 0:03:00.9]} 1... c6 {[%clk 0:02:59.3]} 2. d4 {[%clk 0:03:00.8]}
2... d5 {[%clk 0:02:57.4]} 3. exd5 {[%clk 0:03:01.7]} 3... cxd5 {[%clk 0:02:57]}
4. c4 {[%clk 0:03:02.6]} 4... Nf6 {[%clk 0:02:56.1]} 5. Nc3 {[%clk 0:03:03.5]}
5... e6 {[%clk 0:02:56.1]} 6. c5 {[%clk 0:03:03.2]} 6... Be7 {[%clk 0:02:53.4]}
7. Nf3 {[%clk 0:03:02]} 7... O-O {[%clk 0:02:53.2]} 8. Bd3 {[%clk 0:03:01.7]}
8... b6 {[%clk 0:02:53]} 9. b4 {[%clk 0:03:00.4]} 9... bxc5 {[%clk 0:02:52.6]}
10. bxc5 {[%clk 0:03:00.1]} 10... Nc6 {[%clk 0:02:52.6]} 11. O-O {[%clk
0:02:59.2]} 11... a5 {[%clk 0:02:41.5]} 12. Bb5 {[%clk 0:02:57.3]} 12... Qc7
{[%clk 0:02:35.3]} 13. Bxc6 {[%clk 0:02:39.5]} 13... Qxc6 {[%clk 0:02:34.4]} 14.
Ne5 {[%clk 0:02:40.4]} 14... Qe8 {[%clk 0:02:22.3]} 15. Rb1 {[%clk 0:02:36.4]}
15... Ba6 {[%clk 0:02:21.8]} 16. Re1 {[%clk 0:02:35.8]} 16... Rb8 {[%clk
0:02:04.6]} 17. Ba3 {[%clk 0:02:34]} 17... Rxb1 {[%clk 0:01:58.4]} 18. Qxb1
{[%clk 0:02:34.9]} 18... Qa8 {[%clk 0:01:51.9]} 19. Qb6 {[%clk 0:02:30.5]} 19...
Rb8 {[%clk 0:01:46.1]} 20. Qc6 {[%clk 0:02:26.9]} 20... Bf8 {[%clk 0:01:40]} 21.
Qxa8 {[%clk 0:02:23.4]} 21... Rxa8 {[%clk 0:01:39.7]} 22. Rb1 {[%clk 0:02:24.3]}
22... Ne4 {[%clk 0:01:08.7]} 23. Na4 {[%clk 0:02:12.5]} 23... Nd2 {[%clk
0:01:03.9]} 24. Rb6 {[%clk 0:02:08.9]} 24... Nc4 {[%clk 0:01:04]} 25. Nxc4
{[%clk 0:02:05.7]} 25... Bxc4 {[%clk 0:01:03.9]} 26. Rb7 {[%clk 0:01:56.2]}
26... Bxa2 {[%clk 0:00:59.9]} 27. Nb6 {[%clk 0:01:56.2]} 27... Re8 {[%clk
0:00:51.2]} 28. f4 {[%clk 0:01:49.8]} 28... f6 {[%clk 0:00:48.2]} 29. c6 {[%clk
0:01:42.4]} 29... Bxa3 {[%clk 0:00:40.5]} 30. c7 {[%clk 0:01:41.9]} 30... Bb2
{[%clk 0:00:37.8]} 31. Rb8 {[%clk 0:01:33.8]} 31... Bxd4+ {[%clk 0:00:36.4]} 32.
Kf1 {[%clk 0:01:29.6]} 32... Bc4+ {[%clk 0:00:14.1]} 33. Ke1 {[%clk 0:01:29]}
33... Ba6 {[%clk 0:00:05.6]} 34. Rxe8+ {[%clk 0:01:27.8]} 34... Kf7 {[%clk
0:00:05.5]} 35. Ra8 {[%clk 0:01:24.5]} 35... Bxb6 {[%clk 0:00:04]} 36. Rxa6
{[%clk 0:01:23.1]} 36... Bxc7 {[%clk 0:00:04]} 37. Ra7 {[%clk 0:01:23.4]} 37...
Kg6 {[%clk 0:00:04]} 38. Rxc7 {[%clk 0:01:24.3]} 38... Kf5 {[%clk 0:00:04.5]}
39. Rxg7 {[%clk 0:01:22.6]} 39... Kxf4 {[%clk 0:00:04.4]} 40. Rxh7 {[%clk
0:01:23]} 40... d4 {[%clk 0:00:03.3]} 41. Rg7 {[%clk 0:01:21.7]} 41... f5 {[%clk
0:00:03.2]} 42. h4 {[%clk 0:01:21.7]} 42... e5 {[%clk 0:00:03.5]} 43. h5 {[%clk
0:01:22.1]} 43... e4 {[%clk 0:00:03.5]} 44. h6 {[%clk 0:01:22.2]} 44... Ke3
{[%clk 0:00:04.4]} 45. h7 {[%clk 0:01:22.1]} 45... d3 {[%clk 0:00:05.3]} 46.
h8=Q {[%clk 0:01:21.6]} 46... d2+ {[%clk 0:00:06.2]} 47. Kd1 {[%clk 0:01:21.6]}
47... Kd3 {[%clk 0:00:07.1]} 48. Rd7+ {[%clk 0:01:21.7]} 1-0

[Event "*** Titled Tuesday Blitz"]
[Site "Chess.com"]
[Date "2020.05.19"]
[Round "2"]
[White "r31415"]
[Black "SaySpade4VIP"]
[Result "0-1"]
[WhiteElo "2464"]
[BlackElo "2679"]
[TimeControl "180+1"]
[EndTime "12:17:41 PDT"]
[Termination "SaySpade4VIP won by checkmate"]

1. e4 {[%clk 0:03:00.9]} 1... c6 {[%clk 0:02:58.7]} 2. d4 {[%clk 0:03:00.6]}
2... d5 {[%clk 0:02:57.9]} 3. f3 {[%clk 0:03:00.9]} 3... e6 {[%clk 0:02:55.2]}
4. Nc3 {[%clk 0:03:00.2]} 4... Qb6 {[%clk 0:02:53.5]} 5. a3 {[%clk 0:02:58.8]}
5... Nd7 {[%clk 0:02:41.7]} 6. Be3 {[%clk 0:02:54.3]} 6... Ngf6 {[%clk
0:02:40.9]} 7. e5 {[%clk 0:02:54.3]} 7... Nxe5 {[%clk 0:02:36.9]} 8. Na4 {[%clk
0:02:39.2]} 8... Qa5+ {[%clk 0:02:32.7]} 9. c3 {[%clk 0:02:33.3]} 9... Ng6
{[%clk 0:02:06.7]} 10. h4 {[%clk 0:02:12.8]} 10... h5 {[%clk 0:02:01.9]} 11. Bd3
{[%clk 0:02:09.8]} 11... Qc7 {[%clk 0:01:25]} 12. Bxg6 {[%clk 0:01:55.6]} 12...
Qg3+ {[%clk 0:01:21.7]} 13. Kf1 {[%clk 0:01:55.5]} 13... Qxg6 {[%clk 0:01:22.6]}
14. Ne2 {[%clk 0:01:52.9]} 14... b5 {[%clk 0:01:07.9]} 15. Nc5 {[%clk 0:01:52]}
15... Bxc5 {[%clk 0:01:08.2]} 16. dxc5 {[%clk 0:01:52.9]} 16... e5 {[%clk
0:01:09.1]} 17. a4 {[%clk 0:01:50]} 17... bxa4 {[%clk 0:01:05.3]} 18. Qxa4
{[%clk 0:01:48.8]} 18... Bd7 {[%clk 0:01:05.4]} 19. Kf2 {[%clk 0:01:41.5]} 19...
O-O {[%clk 0:00:57.4]} 20. Bg5 {[%clk 0:01:41.2]} 20... Nh7 {[%clk 0:00:56.3]}
21. Be7 {[%clk 0:01:39.1]} 21... Rfe8 {[%clk 0:00:55.2]} 22. Bd6 {[%clk
0:01:39.6]} 22... Nf8 {[%clk 0:00:52.9]} 23. Qa6 {[%clk 0:01:32.1]} 23... e4
{[%clk 0:00:38.5]} 24. Qb7 {[%clk 0:01:14.6]} 24... exf3 {[%clk 0:00:30.2]} 25.
gxf3 {[%clk 0:01:14.9]} 25... Rxe2+ {[%clk 0:00:30.4]} 26. Kxe2 {[%clk
0:01:12.3]} 26... Qg2+ {[%clk 0:00:30.2]} 27. Kd3 {[%clk 0:00:42.6]} 27... Bf5+
{[%clk 0:00:25.4]} 28. Ke3 {[%clk 0:00:38.7]} 28... Re8+ {[%clk 0:00:19.6]} 29.
Kf4 {[%clk 0:00:35.2]} 29... Ng6+ {[%clk 0:00:19]} 30. Kxf5 {[%clk 0:00:34.4]}
30... Qxf3+ {[%clk 0:00:19]} 31. Bf4 {[%clk 0:00:33.9]} 31... Qg4# {[%clk
0:00:15.6]} 0-1

[Event "*** Titled Tuesday Blitz"]
[Site "Chess.com"]
[Date "2020.05.19"]
[Round "2"]
[White "MomchilPetkov"]
[Black "penguingm1"]
[Result "0-1"]
[WhiteElo "2545"]
[BlackElo "2884"]
[TimeControl "180+1"]
[EndTime "12:17:42 PDT"]
[Termination "penguingm1 won by resignation"]

1. d4 {[%clk 0:03:00.9]} 1... d5 {[%clk 0:03:00.2]} 2. c4 {[%clk 0:03:00.7]}
2... e6 {[%clk 0:03:00.5]} 3. Nc3 {[%clk 0:03:00.3]} 3... Be7 {[%clk 0:03:01]}
4. cxd5 {[%clk 0:03:00]} 4... exd5 {[%clk 0:03:01.9]} 5. Bf4 {[%clk 0:02:59.7]}
5... c6 {[%clk 0:03:02.1]} 6. e3 {[%clk 0:03:00]} 6... Bf5 {[%clk 0:03:02.1]} 7.
Nf3 {[%clk 0:02:50]} 7... Nf6 {[%clk 0:03:01.2]} 8. h3 {[%clk 0:02:49.8]} 8...
h6 {[%clk 0:03:01.3]} 9. Be2 {[%clk 0:02:49.8]} 9... O-O {[%clk 0:03:01.4]} 10.
O-O {[%clk 0:02:49.9]} 10... Re8 {[%clk 0:03:02]} 11. Rc1 {[%clk 0:02:49.4]}
11... Bd6 {[%clk 0:03:01.8]} 12. Bxd6 {[%clk 0:02:44.6]} 12... Qxd6 {[%clk
0:03:02.7]} 13. a3 {[%clk 0:02:45.1]} 13... a5 {[%clk 0:03:01.6]} 14. Na4 {[%clk
0:02:43]} 14... Nbd7 {[%clk 0:03:00.4]} 15. Nc5 {[%clk 0:02:42.9]} 15... Nxc5
{[%clk 0:02:53.5]} 16. Rxc5 {[%clk 0:02:43.8]} 16... Ne4 {[%clk 0:02:53.6]} 17.
Rc1 {[%clk 0:02:41.8]} 17... Re6 {[%clk 0:02:50.8]} 18. Ne5 {[%clk 0:02:36.3]}
18... f6 {[%clk 0:02:48.6]} 19. Nd3 {[%clk 0:02:33.6]} 19... g5 {[%clk
0:02:48.7]} 20. Bg4 {[%clk 0:02:32.3]} 20... Bxg4 {[%clk 0:02:48.3]} 21. Qxg4
{[%clk 0:02:33.2]} 21... Qe7 {[%clk 0:02:47.6]} 22. b4 {[%clk 0:02:25.3]} 22...
axb4 {[%clk 0:02:41.2]} 23. axb4 {[%clk 0:02:26.2]} 23... Nd6 {[%clk 0:02:41.6]}
24. Ra1 {[%clk 0:02:23.4]} 24... Rf8 {[%clk 0:02:41.2]} 25. Nc5 {[%clk
0:02:20.1]} 25... f5 {[%clk 0:02:41]} 26. Qh5 {[%clk 0:02:20.6]} 26... Ref6
{[%clk 0:02:39.1]} 27. Ra7 {[%clk 0:02:20]} 27... Qg7 {[%clk 0:02:35.7]} 28.
Rfa1 {[%clk 0:02:10.3]} 28... Kh7 {[%clk 0:02:30.4]} 29. Kh1 {[%clk 0:01:59]}
29... g4 {[%clk 0:02:30.3]} 30. Qh4 {[%clk 0:01:52.9]} 30... Rg6 {[%clk
0:02:25.9]} 31. Ra8 {[%clk 0:01:44.7]} 31... Rf7 {[%clk 0:02:24.3]} 32. Rd8
{[%clk 0:01:38.4]} 32... f4 {[%clk 0:01:52.1]} 33. exf4 {[%clk 0:01:25.3]} 33...
Nf5 {[%clk 0:01:36.7]} 34. Qh5 {[%clk 0:01:24.5]} 34... Qxd4 {[%clk 0:01:35.6]}
35. Raa8 {[%clk 0:01:04.6]} 35... Qd1+ {[%clk 0:01:24.7]} 36. Kh2 {[%clk
0:01:04.1]} 36... g3+ {[%clk 0:01:25.2]} 37. fxg3 {[%clk 0:01:04.5]} 37... Qxh5
{[%clk 0:01:24.8]} 38. Rh8+ {[%clk 0:00:59]} 38... Kg7 {[%clk 0:01:25.1]} 39. g4
{[%clk 0:00:46.6]} 39... Qh4 {[%clk 0:01:07.4]} 40. Rag8+ {[%clk 0:00:32.5]}
40... Kf6 {[%clk 0:01:07.1]} 41. Rxg6+ {[%clk 0:00:32.7]} 41... Kxg6 {[%clk
0:01:07.5]} 42. gxf5+ {[%clk 0:00:33.6]} 42... Kxf5 {[%clk 0:01:07.9]} 43. g3
{[%clk 0:00:29.4]} 43... Qf6 {[%clk 0:01:05.8]} 44. Re8 {[%clk 0:00:28.1]} 44...
Qb2+ {[%clk 0:01:05.1]} 45. Kg1 {[%clk 0:00:28.4]} 45... Qxb4 {[%clk 0:00:58.1]}
46. Nd7 {[%clk 0:00:26.8]} 46... Rxd7 {[%clk 0:00:57.3]} 0-1